bitfinex-derivatives/quotes_SOLF0:USTF0_20241002
["timestamp","ask_amount","ask_price","bid_price","bid_amount"]
[1727829521097,2.7547,145.23,145.19,0.12502]
[1727829521297,17.9059,145.24,145.19,0.12502]
[1727829521703,2.7552,145.2,145.19,0.12502]
[1727829523893,2.7559,145.16,145.15,50.0]
[1727829527603,74.4,145.21,145.15,50.0]
[1727829528393,2.7553,145.2,145.15,50.0]
[1727829528701,74.4,145.21,145.15,50.0]
[1727829528898,74.4,145.21,145.16,2.7558]
[1727829529103,74.4,145.21,145.15,50.0]
[1727829529409,2.7554,145.2,145.15,52.7561]
[1727829529703,74.4,145.21,145.15,50.0]
[1727829529704,3.39614491,145.19,145.15,50.0]
[1727829529900,74.4,145.21,145.15,50.0]
[1727829530104,2.7558,145.17,145.15,50.0]
[1727829530296,3.39373263,145.19,145.15,50.0]
[1727829530496,2.7558,145.17,145.15,50.0]
[1727829530901,3.53192178,145.19,145.15,50.0]
[1727829531209,2.7559,145.17,145.15,50.0]
[1727829532298,3.43508599,145.19,145.15,50.0]
[1727829532499,2.7559,145.16,145.15,50.0]
[1727829533300,2.7559,145.17,145.15,50.0]
[1727829534207,3.48333158,145.19,145.15,50.0]
[1727829534411,26.48,145.2,145.15,50.0]
[1727829534794,2.7559,145.16,145.15,50.0]
[1727829535009,6.12184648,145.16,145.15,50.0]
[1727829539005,2.7559,145.16,145.15,50.0]
[1727829541407,3.39305562,145.17,145.13,0.12502]
[1727829541616,2.7563,145.14,145.13,0.12502]
[1727829543909,2.7571,145.1,145.09,1.3414]
[1727829544102,83.32183184,145.18,145.13,47.2429]
[1727829544308,26.48,145.12,145.07,0.12502]
[1727829544817,2.7575,145.08,145.07,0.12502]
[1727829546017,26.48,145.12,145.07,0.12502]
[1727829546516,2.7573,145.09,145.07,0.12502]
[1727829547015,2.7573,145.09,145.06,2.7577]
[1727829547016,0.12502,145.13,145.03,26.48]
[1727829547215,1.3895,145.11,145.05,26.48]
[1727829548214,1.3895,145.11,145.09,2.7572]
[1727829548709,1.3895,145.11,145.05,26.48]
[1727829549520,1.3895,145.11,145.09,2.7571]
[1727829549821,1.3895,145.11,145.07,29.98269409]
[1727829550114,1.3895,145.11,145.1,2.7571]
[1727829552518,0.12502,145.13,145.12,2.7567]
[1727829553311,0.12502,145.13,145.12,29.2367]
[1727829554618,1.3438,145.17,145.16,2.7559]
[1727829555509,0.12502,145.19,145.12,26.48]
[1727829557119,0.12502,145.19,145.17,2.7556]
[1727829559824,0.12502,145.19,145.18,2.7556]
[1727829560716,0.12502,145.19,145.16,2.756]
[1727829561017,0.12502,145.19,145.12,26.48]
[1727829561620,0.12502,145.19,145.16,16.54]
[1727829561822,0.12502,145.19,145.12,16.54]
[1727829562122,3.55605878,145.19,145.12,16.54]
[1727829562418,2.7561,145.17,145.14,2.7565]
[1727829562623,0.12502,145.19,145.14,2.7565]
[1727829562927,3.49025615,145.19,145.12,16.54]
[1727829563417,2.7562,145.16,145.13,2.7568]
[1727829564024,2.7561,145.17,145.13,2.7568]
[1727829565024,2.7561,145.17,145.14,2.7566]
[1727829565919,3.49025615,145.19,145.09,26.48]
[1727829566514,2.7561,145.17,145.14,2.7565]
[1727829566715,0.12502,145.19,145.11,26.48]
[1727829566923,0.12502,145.19,145.14,26.48]
[1727829567119,0.12502,145.19,145.18,2.7558]
[1727829571134,2.88082,145.19,145.16,2.7561]
[1727829571724,2.88082,145.19,145.12,26.48]
[1727829571725,0.12502,145.19,145.12,26.48]
[1727829571927,2.7562,145.17,145.14,2.7566]
[1727829572124,3.59119945,145.19,145.09,26.48]
[1727829572528,2.7563,145.16,145.13,2.7568]
[1727829572831,3.59119945,145.19,145.09,26.48]
[1727829573328,2.7565,145.15,145.09,26.48]
[1727829573638,3.59119945,145.19,145.09,26.48]
[1727829574136,2.7563,145.16,145.13,2.7567]
[1727829574931,0.12502,145.19,145.09,26.48]
[1727829575728,0.12502,145.19,145.11,26.48]
[1727829576627,2.7559,145.18,145.15,2.7563]
[1727829576831,0.12502,145.19,145.11,26.48]
[1727829577035,3.48726579,145.19,145.11,26.48]
[1727829577237,3.48726579,145.19,145.09,26.48]
[1727829577627,2.7564,145.16,145.13,2.7567]
[1727829577824,26.48,145.16,145.07,0.12502]
[1727829578338,2.7572,145.12,145.08,2.7576]
[1727829578541,26.48,145.16,145.07,0.12502]
[1727829578839,1.3498,145.11,145.07,0.12502]
[1727829579540,1.3498,145.11,145.1,2.7574]
[1727829580129,3.48726579,145.19,145.09,26.48]
[1727829580438,1.3872,145.18,145.09,26.48]
[1727829581241,2.7561,145.17,145.14,2.7565]
[1727829582030,1.3872,145.18,145.09,27.8534]
[1727829582230,2.7566,145.14,145.09,1.3734]
[1727829582430,27.8672,145.18,145.07,0.12502]
[1727829582628,26.48,145.16,145.07,0.12502]
[1727829582837,2.7571,145.12,145.09,2.7575]
[1727829583035,2.7571,145.12,145.07,0.12502]
[1727829583036,26.48,145.16,145.07,0.12502]
[1727829583440,26.48,145.16,145.08,2.7576]
[1727829583834,2.7571,145.12,145.08,2.7576]
[1727829584038,26.48,145.16,145.08,2.7576]
[1727829584442,26.48,145.16,145.07,0.12502]
[1727829584641,26.48,145.16,145.02,26.48]
[1727829584642,26.48,145.11,145.02,6.97676938]
[1727829584844,3.507732,145.1,145.0,6.97676938]
[1727829585139,26.48,145.11,145.03,2.7586]
[1727829585342,29.94360959,145.11,145.03,2.7586]
[1727829585537,2.7581,145.06,145.03,2.7586]
[1727829585744,29.94360959,145.11,145.02,2.7588]
[1727829586143,2.7582,145.06,144.99,1.2673]
[1727829586543,29.94360959,145.11,144.99,1.2673]
[1727829586739,2.758,145.07,145.03,2.7585]
[1727829588142,2.758,145.07,145.04,2.7585]
[1727829588543,2.7579,145.07,145.04,2.7585]
[1727829589150,29.94360959,145.11,144.99,1.2673]
[1727829589350,26.48,145.09,144.99,1.2673]
[1727829589549,26.60502,145.13,144.96,6.97635382]
[1727829589550,16.56,145.05,144.96,6.97635382]
[1727829589756,2.7585,145.04,144.99,2.7594]
[1727829589947,1.3437,145.04,144.96,3.37629704]
[1727829590247,1.3437,145.04,144.97,16.56]
[1727829590442,1.3437,145.04,145.01,2.88402]
[1727829590837,1.3437,145.04,145.01,0.12502]
[1727829591052,1.3437,145.04,145.03,2.7587]
[1727829591249,1.3437,145.04,145.01,0.12502]
[1727829591953,2.758,145.07,145.01,0.12502]
[1727829592251,1.4023,145.08,145.06,2.758]
[1727829592747,1.4023,145.08,145.05,2.7582]
[1727829594438,0.12502,145.13,145.07,16.56]
[1727829594644,0.12502,145.13,145.12,2.757]
[1727829594849,0.12502,145.13,145.09,16.56]
[1727829595145,0.12502,145.13,145.1,2.7573]
[1727829595350,0.12502,145.13,145.09,16.56]
[1727829595549,0.12502,145.13,145.07,26.49]
[1727829597449,0.12502,145.13,145.12,2.757]
[1727829598252,0.12502,145.13,145.07,26.49]
[1727829598454,0.12502,145.13,145.06,2.6031]
[1727829598455,0.12502,145.13,145.09,2.7574]
[1727829598644,0.12502,145.13,145.06,2.6031]
[1727829599046,0.12502,145.13,145.11,2.7572]
[1727829599653,0.12502,145.13,145.07,26.49]
[1727829599851,0.12502,145.13,145.12,2.757]
[1727829600452,0.12502,145.13,145.11,2.7571]
[1727829600851,2.88182,145.13,145.08,2.7576]
[1727829601059,0.12502,145.13,145.02,33.45534851]
[1727829601353,2.7574,145.1,145.06,2.7581]
[1727829601947,2.7576,145.09,145.06,2.7581]
[1727829602152,2.7576,145.09,145.02,1.3941]
[1727829602153,26.61502,145.13,145.02,1.3941]
[1727829602356,26.49,145.08,145.01,0.12502]
[1727829602655,29.98421773,145.08,145.01,0.12502]
[1727829602956,26.49,145.06,145.01,0.12502]
[1727829603150,2.7589,145.02,145.01,0.12502]
[1727829603347,2.7589,145.02,144.95,0.12502]
[1727829603348,74.48,145.02,144.95,0.12502]
[1727829603548,26.49,144.99,144.93,6.96723045]
[1727829603849,26.49,144.97,144.86,1.3941]
[1727829604261,2.7603,144.95,144.86,1.3941]
[1727829604456,26.49,144.97,144.86,1.3941]
[1727829604755,2.76,144.96,144.86,1.3941]
[1727829604967,3.51973303,144.99,144.93,2.7605]
[1727829605144,26.49,145.0,144.93,2.7605]
[1727829605346,2.7594,145.0,144.96,2.76]
[1727829605550,0.12502,145.01,144.96,2.76]
[1727829605754,0.12502,145.01,144.9,26.49]
[1727829605959,0.12502,145.01,144.95,26.49]
[1727829606453,0.12502,145.01,144.9,26.49]
[1727829606645,0.12502,145.01,144.97,2.7596]
[1727829606847,0.12502,145.01,144.91,3.41981162]
[1727829607052,0.12502,145.01,144.94,26.49]
[1727829607252,0.12502,145.01,144.98,2.7595]
[1727829607455,0.12502,145.01,144.95,2.7357]
[1727829607962,0.12502,145.01,144.99,2.7593]
[1727829608257,0.12502,145.01,144.95,2.7357]
[1727829608456,0.12502,145.01,144.99,2.7593]
[1727829608656,0.12502,145.01,144.95,2.7357]
[1727829608959,0.12502,145.01,145.0,2.7593]
[1727829609761,4.23752,145.07,145.03,2.7586]
[1727829609959,1.47952,145.07,144.98,26.49]
[1727829610358,2.7581,145.06,145.02,2.7588]
[1727829610760,1.47952,145.07,144.98,26.49]
[1727829611163,1.47952,145.07,145.02,2.7588]
[1727829611164,2.7581,145.06,145.02,2.7588]
[1727829611770,0.12502,145.07,144.98,26.49]
[1727829612068,2.88302,145.07,145.03,2.7585]
[1727829612372,0.12502,145.07,145.02,2.7587]
[1727829612572,0.12502,145.07,145.01,26.49]
[1727829612872,0.12502,145.07,145.04,2.7584]
[1727829613372,0.12502,145.07,145.01,26.49]
[1727829614865,0.12502,145.07,145.02,2.7587]
[1727829615081,26.61502,145.07,145.0,1.3321]
[1727829615365,26.49,145.05,144.94,26.49]
[1727829615566,2.7589,145.02,144.97,2.7597]
[1727829615978,2.7594,145.0,144.96,2.76]
[1727829616165,3.49504902,145.03,144.94,1.3321]
[1727829616364,26.49,145.05,144.94,1.3321]
[1727829616574,2.7592,145.01,144.96,2.7599]
[1727829616766,26.49,145.05,144.94,1.3321]
[1727829617367,27.91662,145.07,144.94,27.8221]
[1727829617877,2.7584,145.05,144.98,2.7595]
[1727829618174,1.42662,145.07,144.97,26.49]
[1727829618372,2.7586,145.04,145.0,2.7591]
[1727829619374,2.7583,145.05,144.97,26.49]
[1727829619770,27.91662,145.07,144.97,26.49]
[1727829620170,2.7586,145.04,145.0,2.7591]
[1727829620873,2.7588,145.03,144.99,2.7594]
[1727829621273,27.91662,145.07,144.94,27.8221]
[1727829621474,2.7584,145.05,145.01,2.7589]
[1727829621671,1.42662,145.07,144.97,26.49]
[1727829622578,2.7581,145.06,145.03,2.7587]
[1727829622975,2.7581,145.06,144.97,26.49]
[1727829623177,2.7581,145.06,145.02,2.7588]
[1727829624178,2.7581,145.06,145.02,2.7587]
[1727829624977,0.12502,145.07,145.06,2.7581]
[1727829625679,0.12502,145.07,145.04,26.49]
[1727829625680,2.88182,145.13,145.1,2.7572]
[1727829625881,2.88182,145.13,145.04,26.49]
[1727829626183,2.7571,145.12,145.08,2.7576]
[1727829627179,2.7577,145.09,145.05,2.7582]
[1727829627385,2.7577,145.09,145.03,2.673]
[1727829627581,26.61502,145.13,145.03,2.673]
[1727829627893,2.757,145.12,145.08,2.7577]
[1727829628384,2.7572,145.11,145.07,2.7578]
[1727829628773,2.7572,145.11,145.03,2.673]
[1727829629482,2.7572,145.11,145.08,2.7577]
[1727829634082,2.757,145.12,145.09,2.7574]
[1727829636188,0.12502,145.13,145.04,26.49]
[1727829636387,2.7573,145.11,145.04,26.49]
[1727829636989,2.7573,145.11,145.08,2.7576]
[1727829637896,0.12502,145.13,145.04,26.49]
[1727829638090,2.88192,145.13,145.1,2.7573]
[1727829639081,0.12502,145.13,145.03,2.673]
[1727829639286,26.61502,145.13,145.03,2.673]
[1727829640089,0.12502,145.13,145.03,2.673]
[1727829640280,0.12502,145.13,145.07,26.49]
[1727829640485,0.12502,145.13,145.08,1.3491]
[1727829640680,0.12502,145.13,145.12,2.757]
[1727829641088,79.35856579,145.19,145.1,2.6956]
[1727829641300,2.756,145.18,145.15,2.7564]
[1727829642400,2.7561,145.17,145.14,2.7565]
[1727829643294,4.85856579,145.19,145.1,2.6956]
[1727829643493,2.7564,145.16,145.12,2.7568]
[1727829644097,4.85856579,145.19,145.1,2.6956]
[1727829644286,2.7561,145.17,145.1,2.6956]
[1727829644792,2.7561,145.17,145.14,2.7565]
[1727829644987,0.12502,145.19,145.12,26.49]
[1727829645393,0.12502,145.19,145.1,2.6956]
[1727829645591,2.7563,145.16,145.1,2.6956]
[1727829646496,2.7561,145.17,145.1,2.6956]
[1727829647094,2.7561,145.17,145.14,2.7565]
[1727829647501,2.7559,145.18,145.1,2.6956]
[1727829647899,2.7559,145.18,145.15,2.7563]
[1727829652107,0.12502,145.19,145.15,2.7563]
[1727829652406,2.756,145.17,145.15,2.7563]
[1727829652902,2.7559,145.18,145.15,2.7563]
[1727829653302,0.12502,145.19,145.12,16.55]
[1727829653601,2.756,145.18,145.12,16.55]
[1727829653794,0.12502,145.19,145.12,16.55]
[1727829653999,0.12502,145.19,145.14,16.55]
[1727829654200,0.12502,145.19,145.16,16.55]
[1727829654396,0.12502,145.19,145.18,2.7558]
[1727829656906,2.7548,145.24,145.21,2.7552]
[1727829657112,3.38566787,145.24,145.17,16.55]
[1727829657609,2.7552,145.22,145.19,2.7556]
[1727829658005,2.7552,145.22,145.17,16.55]
[1727829658310,2.7552,145.22,145.2,2.7554]
[1727829659103,74.56502,145.25,145.2,2.7553]
[1727829659309,74.56502,145.25,145.19,16.55]
[1727829659509,0.12502,145.25,145.2,1.3274]
[1727829660110,2.87962,145.25,145.22,2.755]
[1727829660318,0.12502,145.25,145.2,17.8774]
[1727829660822,2.87952,145.25,145.22,2.755]
[1727829661317,0.12502,145.25,145.23,2.7548]
[1727829663317,2.87952,145.25,145.23,2.7548]
[1727829665217,2.87952,145.25,145.2,17.8774]
[1727829665424,2.87952,145.25,145.22,2.755]
[1727829667622,2.755,145.23,145.2,4.0828]
[1727829667816,16.55,145.24,145.15,17.8996]
[1727829668019,16.55,145.23,145.15,17.8996]
[1727829668927,2.7554,145.21,145.17,2.756]
[1727829669127,16.55,145.23,145.17,2.756]
[1727829670130,2.7554,145.21,145.18,2.7558]
[1727829670524,16.55,145.24,145.15,17.8996]
[1727829670721,0.12502,145.25,145.19,2.7556]
[1727829670929,0.12502,145.25,145.19,16.55]
[1727829671426,0.12502,145.25,145.21,2.7553]
[1727829672132,0.12502,145.25,145.19,16.55]
[1727829672328,0.12502,145.25,145.21,2.7552]
[1727829672529,0.12502,145.25,145.19,16.55]
[1727829672730,0.12502,145.25,145.21,16.55]
[1727829673031,0.12502,145.25,145.24,2.7547]
[1727829673630,2.7552,145.22,145.18,2.7557]
[1727829673835,16.55,145.24,145.16,1.2907]
[1727829674231,2.7558,145.19,145.16,1.2907]
[1727829674533,16.55,145.22,145.16,1.2907]
[1727829675039,1.3769,145.23,145.14,1.379]
[1727829675224,1.3769,145.23,145.17,2.756]
[1727829675630,1.3769,145.23,145.15,17.8407]
[1727829675925,2.7554,145.21,145.17,2.756]
[1727829677731,2.7552,145.22,145.18,2.7558]
[1727829678534,0.12502,145.25,145.15,17.8407]
[1727829678733,0.12502,145.25,145.17,16.55]
[1727829679732,0.12502,145.25,145.19,2.7555]
[1727829679733,2.755,145.23,145.19,2.7555]
[1727829680134,2.755,145.23,145.17,16.55]
[1727829680329,0.12502,145.25,145.2,2.7553]
[1727829680330,2.7548,145.24,145.2,2.7553]
[1727829680541,0.12502,145.25,145.2,2.7553]
[1727829681338,0.12502,145.25,145.17,16.55]
[1727829681540,0.12502,145.25,145.19,2.7556]
[1727829681931,2.755,145.23,145.17,16.55]
[1727829682540,0.12502,145.25,145.17,16.55]
[1727829682740,2.7551,145.23,145.19,2.7555]
[1727829683442,2.7551,145.22,145.19,2.7555]
[1727829686437,2.7558,145.18,145.16,2.7562]
[1727829686641,2.7558,145.18,145.15,1.2907]
[1727829686935,16.55,145.22,145.15,1.2907]
[1727829687135,2.7558,145.19,145.16,2.7561]
[1727829687840,16.55,145.22,145.15,1.2907]
[1727829688152,16.55,145.24,145.19,2.7555]
[1727829688749,2.7552,145.22,145.19,2.7555]
[1727829689532,2.7549,145.23,145.2,2.7553]
[1727829689736,0.12502,145.25,145.18,16.55]
[1727829690139,2.87962,145.25,145.23,2.7549]
[1727829690545,0.12502,145.25,145.23,2.7549]
[1727829690842,2.87952,145.25,145.18,16.55]
[1727829691048,0.12502,145.25,145.24,2.7547]
[1727829691447,1.3706,145.32,145.22,16.55]
[1727829691937,2.754,145.28,145.22,16.55]
[1727829692144,1.3706,145.32,145.25,2.7544]
[1727829692450,2.7539,145.29,145.22,16.55]
[1727829692649,1.3706,145.32,145.25,2.7544]
[1727829692845,91.07502,145.31,145.25,2.7544]
[1727829693149,2.7539,145.29,145.24,2.7547]
[1727829693443,91.07502,145.31,145.22,16.55]
[1727829693647,2.7539,145.28,145.22,16.55]
[1727829693847,2.7539,145.28,145.25,2.7544]
[1727829694042,77.27842,145.31,145.24,16.55]
[1727829694346,0.12502,145.31,145.24,16.55]
[1727829694848,0.12502,145.31,145.27,2.754]
[1727829695842,74.4,145.39,145.28,16.55]
[1727829695843,16.67502,145.37,145.28,16.55]
[1727829696047,3.65413349,145.37,145.29,1.2777]
[1727829696936,2.753,145.34,145.3,2.7534]
[1727829697140,20.20413349,145.37,145.3,2.7534]
[1727829697342,20.20413349,145.37,145.29,4.0314]
[1727829697542,20.20413349,145.37,145.29,1.2777]
[1727829698443,2.7531,145.33,145.3,2.7534]
[1727829698641,2.7531,145.33,145.29,1.2777]
[1727829699338,2.7531,145.33,145.29,4.0314]
[1727829700045,20.20413349,145.37,145.29,4.0313]
[1727829700046,2.7533,145.32,145.29,4.0313]
[1727829700650,16.55,145.35,145.29,1.2777]
[1727829700950,2.7535,145.31,145.29,1.2777]
[1727829701251,16.55,145.35,145.29,1.2777]
[1727829701452,2.7532,145.32,145.29,1.2777]
[1727829701652,16.55,145.35,145.29,1.2777]
[1727829702350,2.7533,145.32,145.29,1.2777]
[1727829703351,16.55,145.35,145.29,1.2777]
[1727829703553,1.18853168,145.34,145.29,1.2777]
[1727829704348,2.7534,145.31,145.29,1.2777]
[1727829704549,16.55,145.35,145.29,1.2777]
[1727829704863,1.18863151,145.34,145.29,1.2777]
[1727829706253,2.7533,145.32,145.29,1.2777]
[1727829706453,16.55,145.35,145.29,1.2777]
[1727829706660,1.18855765,145.34,145.29,1.2777]
[1727829707359,1.18855765,145.34,145.29,4.0314]
[1727829707859,2.7533,145.32,145.29,4.0314]
[1727829709154,3.65413349,145.37,145.3,16.55]
[1727829709463,0.12502,145.37,145.3,16.55]
[1727829709662,0.12502,145.37,145.32,2.7531]
[1727829709663,2.7527,145.35,145.32,2.7531]
[1727829709859,0.12502,145.37,145.32,2.7531]
[1727829710053,0.12502,145.37,145.3,16.55]
[1727829710371,2.7525,145.36,145.33,2.7529]
[1727829710751,0.12502,145.37,145.3,16.55]
[1727829711162,2.87732,145.37,145.3,16.55]
[1727829712160,2.87732,145.37,145.32,16.55]
[1727829712559,2.87732,145.37,145.34,2.7528]
[1727829713266,0.12502,145.37,145.32,16.55]
[1727829713471,0.12502,145.37,145.31,1.3195]
[1727829713964,0.12502,145.37,145.32,16.55]
[1727829714166,0.12502,145.37,145.31,1.3195]
[1727829714669,0.12502,145.37,145.32,16.55]
[1727829715154,0.12502,145.37,145.35,2.7524]
[1727829715364,0.12502,145.37,145.32,16.55]
[1727829715563,0.12502,145.37,145.34,16.55]
[1727829716262,0.12502,145.37,145.36,2.7524]
[1727829717066,0.12502,145.37,145.35,1.3154]
[1727829717067,16.67502,145.43,145.35,1.3154]
[1727829717374,2.7515,145.41,145.38,2.752]
[1727829717865,0.12502,145.43,145.38,16.55]
[1727829718964,0.12502,145.43,145.42,2.7513]
[1727829719663,0.12502,145.43,145.4,16.55]
[1727829719864,0.12502,145.43,145.41,2.7514]
[1727829720063,0.12502,145.43,145.4,16.55]
[1727829721367,0.12502,145.43,145.41,2.7515]
[1727829721568,0.12502,145.43,145.35,1.3154]
[1727829721764,16.55,145.42,145.35,1.3154]
[1727829721972,16.55,145.4,145.35,1.3154]
[1727829722466,2.7523,145.37,145.35,1.3154]
[1727829723060,2.7523,145.37,145.33,2.753]
[1727829723571,2.7523,145.37,145.34,2.7528]
[1727829723775,20.031787,145.4,145.32,19.1827]
[1727829723974,2.7524,145.36,145.32,2.6327]
[1727829724165,2.7524,145.36,145.32,1.2769]
[1727829724475,20.031787,145.4,145.32,1.2769]
[1727829724476,2.7523,145.37,145.32,17.8269]
[1727829724671,16.55,145.42,145.32,17.8269]
[1727829725278,0.12502,145.43,145.34,16.55]
[1727829725568,16.55,145.42,145.34,16.55]
[1727829725873,2.7522,145.38,145.32,17.8269]
[1727829726270,0.12502,145.43,145.34,16.55]
[1727829726470,2.7518,145.4,145.34,16.55]
[1727829727377,0.12502,145.43,145.36,16.55]
[1727829727563,0.12502,145.43,145.39,2.7517]
[1727829727868,2.7515,145.41,145.36,16.55]
[1727829728267,0.12502,145.43,145.36,16.55]
[1727829728872,2.7515,145.41,145.38,2.7519]
[1727829729174,0.12502,145.43,145.38,2.7519]
[1727829729473,16.67502,145.43,145.34,16.55]
[1727829729976,2.7518,145.4,145.37,2.7522]
[1727829730470,0.12502,145.43,145.36,16.55]
[1727829730677,2.7514,145.42,145.38,2.752]
[1727829730869,0.12502,145.43,145.36,16.55]
[1727829731178,16.67502,145.43,145.34,16.55]
[1727829732068,2.7518,145.4,145.37,2.7521]
[1727829733172,0.12502,145.43,145.36,16.55]
[1727829733474,0.12502,145.43,145.41,2.7514]
[1727829734780,2.7513,145.42,145.39,1.3209]
[1727829735079,0.12502,145.43,145.39,1.3209]
[1727829735281,0.12502,145.43,145.37,4.0512]
[1727829735282,2.7518,145.4,145.37,4.0512]
[1727829735471,16.55,145.42,145.34,16.55]
[1727829735877,2.7521,145.38,145.35,2.7526]
[1727829736072,16.55,145.42,145.34,16.55]
[1727829736473,16.55,145.42,145.33,1.2796]
[1727829736680,0.12502,145.43,145.33,1.2796]
[1727829736681,16.55,145.4,145.33,1.2796]
[1727829736879,1.3995,145.39,145.33,1.2796]
[1727829737375,1.3995,145.39,145.28,1.3031]
[1727829737576,2.7532,145.32,145.27,2.7541]
[1727829737775,16.55,145.36,145.28,16.55]
[1727829737977,3.48293763,145.36,145.28,16.55]
[1727829738175,0.2837,145.38,145.28,16.55]
[1727829738372,2.7528,145.35,145.28,16.55]
[1727829738572,2.7528,145.35,145.29,1.3553]
[1727829738773,2.7528,145.34,145.31,2.87822]
[1727829739084,16.55,145.37,145.31,0.12502]
[1727829739381,2.7532,145.33,145.31,0.12502]
[1727829739786,2.7526,145.36,145.31,2.87832]
[1727829739976,16.55,145.37,145.31,0.12502]
[1727829740173,17.9495,145.39,145.31,0.12502]
[1727829740388,17.9495,145.39,145.32,2.7531]
[1727829740580,17.9495,145.39,145.31,0.12502]
[1727829740890,2.7524,145.37,145.33,2.753]
[1727829741182,17.9495,145.39,145.31,0.12502]
[1727829741382,2.7528,145.35,145.31,2.87832]
[1727829741686,17.9495,145.39,145.31,0.12502]
[1727829742185,17.9495,145.39,145.35,16.55]
[1727829742186,1.3995,145.39,145.35,16.55]
[1727829742484,0.12502,145.43,145.36,16.55]
[1727829742688,16.67502,145.43,145.35,16.55]
[1727829743373,0.12502,145.43,145.37,16.55]
[1727829743577,0.12502,145.43,145.38,16.55]
[1727829743779,0.12502,145.43,145.36,16.55]
[1727829744486,2.7516,145.41,145.37,2.7521]
[1727829744990,0.12502,145.43,145.39,2.7517]
[1727829744991,2.87612,145.43,145.39,2.7517]
[1727829745286,0.12502,145.43,145.39,2.7517]
[1727829746079,2.87622,145.43,145.39,2.7517]
[1727829746984,0.12502,145.43,145.4,16.55]
[1727829747685,0.12502,145.43,145.41,2.7514]
[1727829748285,0.12502,145.43,145.42,2.7513]
[1727829751083,2.7505,145.47,145.44,2.7509]
[1727829751285,2.7505,145.47,145.41,1.3225]
[1727829751286,2.7505,145.47,145.42,16.55]
[1727829751684,2.7505,145.47,145.43,2.751]
[1727829753688,0.12502,145.49,145.44,2.7509]
[1727829753689,2.7502,145.48,145.44,2.7509]
[1727829753893,2.7502,145.48,145.42,16.55]
[1727829754286,2.7502,145.48,145.44,2.7508]
[1727829754984,0.12502,145.49,145.44,16.55]
[1727829755591,2.87512,145.49,145.46,2.7504]
[1727829756586,0.12502,145.49,145.46,16.55]
[1727829757291,0.12502,145.49,145.47,2.7502]
[1727829757894,0.12502,145.49,145.48,2.7502]
[1727829763906,0.12502,145.49,145.48,19.3002]
[1727829764406,1.02040816,145.51,145.5,2.7498]
[1727829764801,0.12502,145.55,145.52,2.7493]
[1727829765006,0.12502,145.55,145.52,19.2993]
[1727829765205,0.12502,145.55,145.52,16.55]
[1727829766003,0.12502,145.55,145.53,2.7492]
[1727829766304,0.12502,145.55,145.52,16.55]
[1727829766609,0.12502,145.55,145.53,2.7492]
[1727829767008,0.12502,145.55,145.52,19.2993]
[1727829767303,0.12502,145.55,145.52,16.55]
[1727829768806,0.12502,145.55,145.53,2.7491]
[1727829769800,0.12502,145.55,145.52,16.55]
[1727829771101,0.12502,145.55,145.53,2.7491]
[1727829774002,0.12502,145.55,145.52,16.55]
[1727829774313,0.12502,145.55,145.54,2.749]